fUSD/lending_fUSD_20251201
["ID","MTS","AMOUNT","RATE_DAILY","PERIOD"]
[395281547,1764583840316,-756.76,0.0001565,2]
[395281548,1764583840351,-691.10317124,0.0001565,2]
[395281549,1764583840362,-4521.37273138,0.0001565,2]
[395281550,1764583840373,-520.0,0.0001565,2]
[395281551,1764583840510,-7542.73406899,0.0001565,2]
[395281552,1764583840669,-5226.13882526,0.0001565,2]
[395281560,1764583843441,-533.24435459,0.0001565,2]
[395281561,1764583843546,-69682.155701,0.0001565,2]
[395281564,1764583846322,-28488.2138302,0.0001565,2]
[395281565,1764583846479,-63019.99566193,0.0001565,2]
[395281598,1764584346359,164.26,0.00011971,2]
[395281640,1764584965642,235.23757231,0.000145,4]
[395281653,1764585031551,-300.0,0.00012398,2]
[395281654,1764585031563,-153.61393552,0.00012398,2]
[395281655,1764585031575,-738.38606448,0.00012398,2]
[395281656,1764585031584,-300.0,0.00012398,2]
[395281657,1764585031594,-300.0,0.00012398,2]
[395281658,1764585031603,-38444.40086757,0.00012399,2]
[395281659,1764585031613,-500.0,0.00012873,2]
[395281660,1764585031622,-1000.0,0.00013421,2]
[395281661,1764585031631,-420.0,0.00013605,2]
[395281662,1764585031641,-343.0,0.00013605,2]
[395281663,1764585031651,-355.0,0.00013605,2]
[395281664,1764585031660,-967.9,0.00013699,2]
[395281676,1764585031976,-224.15226749,0.00013968,2]
[395281677,1764585032016,-200.0,0.00014624,2]
[395281678,1764585032026,-1600.0,0.00014672,2]
[395281679,1764585032035,-587.0,0.00014929,2]
[395281680,1764585032045,-164.26,0.00014963,2]
[395281681,1764585032054,-4691.39,0.00015212,2]
[395281682,1764585032063,-150.99,0.00015212,2]
[395281683,1764585032072,-250.0,0.00015341,2]
[395281684,1764585032082,-1485.83735201,0.00015349,2]
[395281685,1764585032092,-163.5,0.00015361,2]
[395281686,1764585032102,-222.76990664,0.00015373,2]
[395281687,1764585032113,-300.0,0.00015419,2]
[395281688,1764585032123,-166.67,0.00015445,2]
[395281689,1764585032134,-657.42506704,0.0001545,2]
[395281690,1764585032143,-235.3283,0.0001545,2]
[395281691,1764585032153,-250.0,0.00015461,2]
[395281692,1764585032162,-174.0,0.00015463,2]
[395281693,1764585032171,-1570.04647853,0.00015465,2]
[395281694,1764585032181,-151.0,0.00015547,2]
[395281695,1764585032190,-158.42948776,0.00015549,2]
[395281696,1764585032199,-1000.0,0.0001555,2]
[395281697,1764585032208,-19775.67338187,0.0001555,2]
[395281698,1764585032219,-4006.16353327,0.0001555,2]
[395281699,1764585032230,-33068.86491763,0.0001555,2]
[395281700,1764585032241,-3782.31350058,0.0001555,2]
[395281701,1764585032252,-2973.39073889,0.0001555,2]
[395281702,1764585037761,-60699.92529156,0.0001555,2]
[395281703,1764585037773,-339.57314167,0.0001555,2]
[395281704,1764585037785,-2988.64979638,0.0001555,2]
[395281705,1764585037811,-85926.0,0.0001555,2]
[395281742,1764585039502,-763.45759774,0.0001555,2]
[395281743,1764585039514,-12704.44840072,0.0001555,2]
[395281744,1764585039664,-1816.1891,0.0001555,2]
[395281745,1764585039717,-16599.23770499,0.0001555,2]
[395281746,1764585039774,-514556.1128947,0.0001555,2]
[395281747,1764585039783,-2500.0,0.0001555,2]
[395281748,1764585039795,-200.0,0.0001564,2]
[395281749,1764585039804,-500.0,0.0001564,2]
[395281750,1764585039815,-500.0,0.0001564,2]
[395281751,1764585039824,-500.0,0.0001564,2]
[395281752,1764585039833,-500.0,0.0001564,2]
[395281753,1764585039843,-500.0,0.0001564,2]
[395281754,1764585039854,-500.0,0.0001564,2]
[395281755,1764585039863,-500.0,0.0001564,2]
[395281756,1764585039874,-500.0,0.0001564,2]
[395281757,1764585039884,-500.0,0.0001564,2]
[395281758,1764585039893,-247.66625722,0.0001564,2]
[395281759,1764585039903,-151.0,0.0001564,2]
[395281760,1764585039913,-151.0,0.0001564,2]
[395281761,1764585039923,-151.0,0.0001564,2]
[395281762,1764585039933,-151.0,0.0001564,2]
[395281763,1764585039942,-151.0,0.0001564,2]
[395281764,1764585039952,-151.0,0.0001564,2]
[395281765,1764585039961,-151.0,0.0001564,2]
[395281766,1764585039971,-151.0,0.0001564,2]
[395281767,1764585039981,-151.0,0.0001564,2]
[395281769,1764585039991,-151.0,0.0001564,2]
[395281770,1764585040000,-151.0,0.0001564,2]
[395281771,1764585040012,-151.0,0.0001564,2]
[395281772,1764585040021,-151.0,0.0001564,2]
[395281774,1764585040031,-151.0,0.0001564,2]
[395281776,1764585040040,-4205.23,0.00015649,2]
[395281778,1764585040049,-4205.23,0.00015649,2]
[395281779,1764585040058,-4205.23,0.00015649,2]
[395281780,1764585040068,-500.0,0.00015649,2]
[395281781,1764585040077,-500.0,0.00015649,2]
[395281782,1764585040086,-500.0,0.00015649,2]
[395281783,1764585040096,-500.0,0.00015649,2]
[395281784,1764585040105,-500.0,0.00015649,2]
[395281785,1764585040114,-593.21617524,0.00015649,2]
[395281786,1764585040124,-391.07433135,0.00015649,2]
[395281787,1764585040133,-500.0,0.00015649,2]
[395281788,1764585040143,-500.0,0.00015649,2]
[395281789,1764585040152,-500.0,0.00015649,2]
[395281790,1764585040162,-151.0,0.0001565,2]
[395281791,1764585040171,-1250.0,0.0001565,2]
[395281792,1764585040190,-1250.0,0.0001565,2]
[395281793,1764585040201,-1250.0,0.0001565,2]
[395281794,1764585040213,-1250.0,0.0001565,2]
[395281795,1764585040222,-1232.0,0.0001565,2]
[395281796,1764585040232,-153.0,0.0001565,2]
[395281797,1764585040242,-153.0,0.0001565,2]
[395281798,1764585040251,-153.0,0.0001565,2]
[395281799,1764585040261,-152.0,0.0001565,2]
[395281800,1764585040271,-152.0,0.0001565,2]
[395281801,1764585040282,-152.0,0.0001565,2]
[395281802,1764585040294,-152.0,0.0001565,2]
[395281803,1764585040304,-152.0,0.0001565,2]
[395281804,1764585040313,-5694.96362,0.0001565,2]
[395281805,1764585040323,-152.0,0.0001565,2]
[395281806,1764585040332,-152.0,0.0001565,2]
[395281807,1764585040341,-152.0,0.0001565,2]
[395281808,1764585040351,-1250.0,0.0001565,2]
[395281809,1764585040360,-1250.0,0.0001565,2]
[395281810,1764585040370,-1250.0,0.0001565,2]
[395281811,1764585040379,-832.0,0.0001565,2]
[395281812,1764585040389,-1250.0,0.0001565,2]
[395281813,1764585040399,-832.0,0.0001565,2]
[395281814,1764585040408,-1250.0,0.0001565,2]
[395281815,1764585040418,-1250.0,0.0001565,2]
[395281816,1764585040427,-1000.0,0.00015678,2]
[395281817,1764585040437,-2738.8595555,0.00015746,2]
[395281818,1764585040446,-44909.8416383,0.00015746,2]
[395281819,1764585040455,-3179.7820917,0.00015746,2]
[395281820,1764585040465,-14847.3798148,0.00015746,2]
[395281821,1764585040474,-500.0,0.00015748,2]
[395281822,1764585040483,-500.0,0.00015749,2]
[395281823,1764585040496,-500.0,0.00015749,2]
[395281824,1764585040506,-464.30302613,0.00015749,2]
[395281825,1764585040517,-500.0,0.00015749,2]
[395281826,1764585040527,-500.0,0.00015749,2]
[395281827,1764585040536,-501.94091737,0.00015749,2]
[395281828,1764585040546,-500.0,0.00015749,2]
[395281829,1764585040555,-500.0,0.00015749,2]
[395281830,1764585040566,-500.0,0.00015749,2]
[395281831,1764585040575,-500.0,0.00015749,2]
[395281832,1764585040584,-500.0,0.00015749,2]
[395281833,1764585040594,-500.0,0.00015749,2]
[395281834,1764585040603,-161.1211976,0.0001585,6]
[395281835,1764585040612,-160.03289921,0.0001585,2]
[395281836,1764585040622,-500.0,0.0001585,2]
[395281837,1764585040631,-500.0,0.0001585,2]
[395281838,1764585040641,-500.0,0.0001585,2]
[395281839,1764585040651,-500.0,0.0001585,2]
[395281840,1764585040660,-217.00327303,0.0001585,2]
[395281841,1764585040670,-500.0,0.0001585,2]
[395281842,1764585040681,-500.0,0.0001585,2]
[395281843,1764585040691,-156.08046811,0.0001585,2]
[395281844,1764585040701,-160.09669624,0.0001585,2]
[395281845,1764585040710,-500.0,0.0001585,2]
[395281846,1764585040720,-500.0,0.0001585,2]
[395281847,1764585040736,-500.0,0.0001585,2]
[395281848,1764585040747,-500.0,0.0001585,2]
[395281849,1764585040757,-409.96658599,0.0001585,2]
[395281850,1764585040766,-500.0,0.0001585,2]
[395281851,1764585040775,-500.0,0.0001585,2]
[395281852,1764585040785,-500.0,0.0001585,2]
[395281853,1764585040795,-500.0,0.0001585,2]
[395281854,1764585040804,-500.0,0.0001585,2]
[395281855,1764585040814,-6208.37,0.00015891,2]
[395281856,1764585040823,-1061.48348724,0.000159,2]
[395281857,1764585040833,-1061.48348724,0.000159,2]
[395281858,1764585040844,-1061.48348724,0.000159,2]
[395281859,1764585040854,-1061.48348724,0.000159,2]
[395281860,1764585040864,-1061.48348724,0.000159,2]
[395281861,1764585040875,-1061.48348724,0.000159,2]
[395281862,1764585040885,-15718.8954656,0.000159,2]
[395281863,1764585040895,-321.9,0.00015909,2]
[395281864,1764585040904,-1500.0,0.0001591,2]
[395281865,1764585040914,-552.29203276,0.00016,2]
[395281866,1764585040923,-23669.11750587,0.00016,2]
[395281867,1764585040932,-657.42506702,0.00016175,2]
[395281868,1764585040942,-69919.515623,0.000162,5]
[395281869,1764585040952,-373.97112144,0.00016236,2]
[395281870,1764585040962,-166.67,0.00016295,2]
[395281871,1764585040972,-163.5,0.00016321,2]
[395281872,1764585040981,-823.0,0.00016382,2]
[395281873,1764585040991,-1000.0,0.00016398,2]
[395281874,1764585041000,-550.61391722,0.00016398,2]
[395281875,1764585041011,-1000.0,0.00016398,2]
[395281876,1764585041020,-1000.0,0.00016398,2]
[395281877,1764585041030,-1000.0,0.00016398,2]
[395281878,1764585041039,-1000.0,0.00016398,2]
[395281879,1764585041049,-831.20229943,0.00016398,2]
[395281880,1764585041059,-654.41744648,0.00016398,2]
[395281881,1764585041068,-160.17885855,0.00016398,2]
[395281882,1764585041079,-548.82474691,0.00016398,2]
[395281883,1764585041089,-500.75241727,0.00016398,2]
[395281884,1764585041098,-1000.0,0.00016398,2]
[395281885,1764585041108,-1000.0,0.00016398,2]
[395281886,1764585041117,-1000.0,0.00016398,2]
[395281887,1764585041127,-1000.53815546,0.00016398,2]
[395281888,1764585041137,-472.63,0.00016402,2]
[395281889,1764585041148,-858.28092339,0.00016428,2]
[395281890,1764585041158,-500.0,0.00016438,2]
[395281891,1764585041169,-500.0,0.00016438,2]
[395281892,1764585041181,-500.0,0.00016438,2]
[395281893,1764585041191,-500.0,0.00016438,2]
[395281894,1764585041201,-500.0,0.00016438,2]
[395281895,1764585041211,-500.0,0.00016438,2]
[395281896,1764585041221,-500.0,0.00016438,2]
[395281897,1764585041231,-500.0,0.00016438,2]
[395281898,1764585041241,-500.0,0.00016438,2]
[395281899,1764585041251,-500.0,0.00016438,2]
[395281900,1764585041261,-500.0,0.00016438,2]
[395281901,1764585041271,-500.0,0.00016438,2]
[395281902,1764585041280,-500.0,0.00016438,2]
[395281903,1764585041290,-500.0,0.00016438,2]
[395281904,1764585041299,-500.0,0.00016438,2]
[395281905,1764585041309,-500.0,0.00016438,2]
[395281906,1764585041319,-500.0,0.00016438,2]
[395281907,1764585041328,-500.0,0.00016438,2]
[395281908,1764585041338,-516.40070071,0.00016438,2]
[395281909,1764585041348,-500.0,0.00016438,2]
[395281910,1764585041358,-500.0,0.00016438,2]
[395281911,1764585041368,-500.0,0.00016438,2]
[395281912,1764585041378,-500.0,0.00016438,2]
[395281913,1764585041388,-500.0,0.00016438,2]
[395281914,1764585041398,-500.0,0.00016438,2]
[395281915,1764585041408,-500.0,0.00016438,2]
[395281916,1764585041417,-500.0,0.00016438,2]
[395281917,1764585041427,-500.0,0.00016438,2]
[395281918,1764585041437,-500.0,0.00016438,2]
[395281919,1764585041447,-500.0,0.00016438,2]
[395281920,1764585041456,-500.0,0.00016438,2]
[395281921,1764585041466,-500.0,0.00016438,2]
[395281922,1764585041475,-500.0,0.00016438,2]
[395281923,1764585041485,-500.0,0.00016438,2]
[395281924,1764585041498,-500.0,0.00016438,2]
[395281925,1764585041507,-500.0,0.00016438,2]
[395281926,1764585041517,-500.0,0.00016438,2]
[395281927,1764585041527,-500.0,0.00016438,2]
[395281928,1764585041537,-500.0,0.00016438,2]
[395281929,1764585041547,-500.0,0.00016438,2]
[395281930,1764585041557,-500.0,0.00016438,2]
[395281931,1764585041567,-500.0,0.00016438,2]
[395281932,1764585041578,-500.0,0.00016438,2]
[395281933,1764585041588,-500.0,0.00016438,2]
[395281934,1764585041598,-8490.71,0.00016438,2]
[395281935,1764585041608,-11742.55,0.00016438,2]
[395281936,1764585041618,-164.05,0.0001644,2]
[395281937,1764585041628,-1570.04647849,0.00016502,2]
[395281938,1764585041638,-1600.0,0.00016506,2]
[395281939,1764585041647,-286.0,0.00016545,2]
[395281940,1764585041657,-357.76401239,0.000166,2]
[395281941,1764585041666,-151.0,0.00016633,2]
[395281942,1764585041677,-2816.534,0.00016636,2]
[395281943,1764585041688,-178.451,0.00016636,2]
[395281944,1764585041699,-427.65493559,0.0001664,2]
[395281945,1764585041708,-483.0,0.00016856,2]
[395281946,1764585041718,-483.0,0.00016869,2]
[395281947,1764585041729,-604.07312412,0.00016875,2]
[395281948,1764585041738,-483.0,0.0001689,2]
[395281949,1764585041749,-500.0,0.00016899,2]
[395281950,1764585041758,-500.0,0.00016899,2]
[395281951,1764585041768,-500.0,0.00016899,2]
[395281952,1764585041777,-500.0,0.00016899,2]
[395281953,1764585041787,-500.0,0.00016899,2]
[395281954,1764585041797,-559.01212268,0.00016899,2]
[395281955,1764585041807,-567.86060721,0.00016899,2]
[395281956,1764585041816,-500.0,0.00016899,2]
[395281957,1764585041824,-500.0,0.00016899,2]
[395281958,1764585041834,-500.0,0.00016899,2]
[395281959,1764585041843,-400.14865854,0.00016899,2]
[395281960,1764585041853,-500.0,0.00016899,2]
[395281961,1764585041862,-500.0,0.00016899,2]
[395281962,1764585041871,-500.0,0.00016899,2]
[395281963,1764585041881,-1241.13824556,0.000169,2]
[395281964,1764585041891,-192.34044253,0.000169,2]
[395281965,1764585041900,-866.01523938,0.000169,2]
[395281966,1764585041909,-657.42506702,0.000169,2]
[395281967,1764585041918,-241.80980606,0.00016902,2]
[395281968,1764585041927,-483.0,0.00016936,2]
[395281969,1764585041937,-483.0,0.00016943,2]
[395281970,1764585041947,-585.93988918,0.00016946,2]
[395281971,1764585041957,-808.25309898,0.00016946,2]
[395281972,1764585041968,-1500.0,0.00016946,2]
[395281973,1764585041980,-1500.0,0.00016946,2]
[395281974,1764585041990,-1001.34823292,0.00016946,2]
[395281975,1764585042001,-1500.0,0.00016946,2]
[395281976,1764585042013,-934.82176489,0.00016946,2]
[395281977,1764585042023,-15940.0,0.00016986,2]
[395281978,1764585042034,-858.28092339,0.0001699,2]
[395281979,1764585042044,-858.28092339,0.0001699,2]
[395281980,1764585042053,-249.25554546,0.00016992,2]
[395281981,1764585042064,-155.0383737,0.00016992,2]
[395281982,1764585042074,-150.0,0.00016992,2]
[395281983,1764585042083,-500.0,0.00016992,2]
[395281984,1764585042092,-500.0,0.00016992,2]
[395281985,1764585042102,-500.0,0.00016992,2]
[395281986,1764585042111,-500.0,0.00016992,2]
[395281987,1764585042119,-500.0,0.00016992,2]
[395281988,1764585042128,-150.0,0.00016992,2]
[395281989,1764585042137,-150.0,0.00016992,2]
[395281990,1764585042146,-200.0,0.00016992,2]
[395281991,1764585042155,-500.0,0.00016992,2]
[395281992,1764585042165,-150.0,0.00016992,2]
[395281993,1764585042174,-150.0,0.00016992,2]
[395281994,1764585042184,-150.0,0.00016992,2]
[395281995,1764585042194,-500.0,0.00016992,2]
[395281996,1764585042203,-150.0,0.00016992,2]
[395281997,1764585042213,-150.0,0.00016992,2]
[395281999,1764585042223,-500.0,0.00016992,2]
[395282001,1764585042233,-150.0,0.00016992,2]
[395282002,1764585042243,-500.0,0.00016992,2]
[395282003,1764585042252,-500.0,0.00016992,2]
[395282005,1764585042261,-4205.23,0.00016997,2]
[395282007,1764585042271,-500.0,0.00016997,2]
[395282008,1764585042280,-151.0,0.00016997,2]
[395282010,1764585042290,-250.0,0.00016997,2]
[395282012,1764585042300,-250.0,0.00016997,2]
[395282013,1764585042309,-250.0,0.00016997,2]
[395282014,1764585042319,-250.0,0.00016997,2]
[395282015,1764585042328,-250.0,0.00016997,2]
[395282016,1764585042337,-250.0,0.00016997,2]
[395282017,1764585042347,-250.0,0.00016997,2]
[395282018,1764585042356,-250.0,0.00016997,2]
[395282019,1764585042366,-250.0,0.00016997,2]
[395282020,1764585042376,-250.0,0.00016997,2]
[395282021,1764585042385,-250.0,0.00016997,2]
[395282022,1764585042395,-1000.6191,0.00016999,2]
[395282023,1764585042405,-4205.23,0.00016999,2]
[395282024,1764585042414,-500.0,0.00016999,2]
[395282025,1764585042423,-500.0,0.00016999,2]
[395282026,1764585042434,-214799.73948587,0.00017,2]
[395282027,1764585042444,-290.21536859,0.00017,2]
[395282029,1764585042453,-169.89047192,0.00017,2]
[395282031,1764585042463,-2000.0,0.00017,2]
[395282034,1764585042473,-250.0,0.00017,2]
[395282036,1764585042482,-68994.95485219,0.00017,2]
[395282038,1764585042496,-2767082.26985996,0.00017,2]
[395282039,1764585042505,-3050136.51537704,0.00017,2]
[395282040,1764585042550,-396.71618048,0.00017,2]
[395282041,1764585042562,-6313.99835708,0.00017,2]
[395282042,1764585042573,-10328.61064323,0.00017,2]
[395282046,1764585043194,-267.19983382,0.0001585,2]
[395282047,1764585045437,-232.80016618,0.0001585,2]
[395282048,1764585045447,-69.71211666,0.00016398,2]
[395282051,1764585045502,-436.86018137,0.0001585,2]
[395282052,1764585045607,-63.13981863,0.0001585,2]
[395282053,1764585045619,-930.28788334,0.00016398,2]
[395282054,1764585045629,-575.43559045,0.00016398,2]
[395282055,1764585045638,-500.0,0.00016438,2]
[395282056,1764585045647,-1345.38363347,0.00016946,2]
[395282057,1764585045658,-4601.46006932,0.00017,2]
[395282058,1764585045683,-6224.77927517,0.00017,2]
[395282140,1764586231620,-323.8,0.00012873,2]
[395282141,1764586231675,-176.2,0.00012873,2]
[395282142,1764586231689,-195.52666433,0.00012873,2]
[395282143,1764586231698,-500.0,0.00012873,2]
[395282144,1764586231708,-500.8341776,0.00012873,2]
[395282145,1764586231718,-251.78298488,0.0001342,2]
[395282146,1764586231729,-948.21701512,0.0001342,2]
[395282147,1764586231739,-500.0,0.00013421,2]
[395282148,1764586231748,-500.0,0.00013421,2]
[395282149,1764586231758,-300.0,0.00013811,2]
[395282150,1764586231767,-300.0,0.00013811,2]
[395282151,1764586231777,-300.0,0.00013812,2]
[395282152,1764586231786,-150.28298488,0.00013812,2]
[395282153,1764586231799,-149.71701512,0.00013812,2]
[395282154,1764586231808,-300.0,0.00013812,2]
[395282155,1764586231818,-300.0,0.00013812,2]
[395282156,1764586231827,-195.0,0.00014048,2]
[395282157,1764586231837,-195.0,0.0001416,2]
[395282158,1764586231850,-300.0,0.0001416,2]
[395282159,1764586231860,-195.0,0.0001416,2]
[395282160,1764586231869,-166.66,0.00014561,2]
[395282162,1764586231878,-598.62298488,0.0001467,2]
[395282163,1764586231894,-401.37701512,0.0001467,2]
[395282166,1764586231903,-150.0,0.00014718,2]
[395282169,1764586231913,-151.0,0.00014753,2]
[395282171,1764586231923,-1680.0,0.00014762,2]
[395282173,1764586231932,-377.97,0.00014818,2]
[395282175,1764586231942,-1372.0,0.00014842,2]
[395282177,1764586231952,-166.66,0.00014867,2]
[395282179,1764586231961,-340.0,0.00014871,2]
[395282181,1764586231970,-500.0,0.00014909,2]
[395282183,1764586231979,-200.0,0.00014973,2]
[395282185,1764586231989,-435.0,0.00015061,2]
[395282187,1764586231998,-420.0,0.00015134,2]
[395282188,1764586232008,-166.66,0.00015174,2]
[395282189,1764586232020,-151.0,0.00015301,2]
[395282190,1764586232033,-150.0,0.00015349,2]
[395282192,1764586232043,-2491.4269,0.0001535,2]
[395282194,1764586232053,-3822.67935202,0.0001535,2]
[395282208,1764586237812,-500.0,0.00015349,2]
[395282209,1764586237822,-500.0,0.00015349,2]
[395282210,1764586237831,-500.0,0.00015349,2]
[395282211,1764586237842,-500.0,0.00015349,2]
[395282212,1764586237851,-500.0,0.00015349,2]
[395282213,1764586237860,-591.43654777,0.00015349,2]
[395282214,1764586237870,-500.0,0.00015349,2]
[395282215,1764586237879,-3259.85634798,0.0001535,2]
[395282216,1764586237888,-500.0,0.0001535,2]
[395282217,1764586237897,-500.0,0.0001535,2]
[395282218,1764586237907,-500.0,0.0001535,2]
[395282219,1764586237916,-500.0,0.0001535,2]
[395282220,1764586237925,-500.0,0.0001535,2]
[395282221,1764586237934,-500.0,0.0001535,2]
[395282222,1764586237943,-500.0,0.0001535,2]
[395282223,1764586237952,-468.47698181,0.0001535,2]
[395282224,1764586237961,-1686.21636251,0.0001535,2]
[395282225,1764586237980,-813.78363749,0.0001535,2]
[395282226,1764586237990,-12610.34894426,0.0001535,2]
[395282227,1764586238002,-15352.80042053,0.0001535,2]
[395282228,1764586239681,-922.18333418,0.0001535,2]
[395282229,1764586239693,-772.25867176,0.0001535,2]
[395282230,1764586239704,-1833.4,0.0001535,2]
[395282231,1764586239840,-1386.19387296,0.0001535,2]
[395282232,1764586239999,-420.86114321,0.0001535,2]
[395282233,1764586240052,-3206.94829778,0.0001535,2]
[395282235,1764586240062,-3829.98099585,0.0001535,2]
[395282236,1764586240074,-10622.44246987,0.0001535,2]
[395282237,1764586240085,-18624.73384326,0.0001535,2]
[395282241,1764586243444,-261.98000005,0.00014699,2]
[395282242,1764586243455,-86.01999995,0.00014699,2]
[395282243,1764586243465,-602.72837965,0.0001535,2]
[395282244,1764586243547,-1797.61271401,0.0001535,2]
[395282245,1764586243557,-393.39206397,0.0001535,2]
[395282248,1764586245802,-732.66,0.0001535,2]
[395282249,1764586245814,-859.21839057,0.0001535,2]
[395282250,1764586245825,-657.92929977,0.0001535,2]
[395282251,1764586245909,-612.84989598,0.0001535,2]
[395282252,1764586245922,-327.410967,0.0001535,2]
[395282253,1764586245933,-1103.000005,0.0001535,2]
[395282254,1764586245946,-379.12940536,0.0001535,2]
[395282332,1764587431902,-250.0,0.00012822,2]
[395282333,1764587431911,-801.0,0.00012872,2]
[395282334,1764587431922,-297.0,0.00012872,2]
[395282335,1764587431931,-500.0,0.00012873,2]
[395282336,1764587431940,-174.67915074,0.00012873,2]
[395282337,1764587431949,-500.0,0.00012873,2]
[395282338,1764587431959,-500.0,0.00012873,2]
[395282339,1764587431969,-500.6934566,0.00012873,2]
[395282340,1764587431978,-219.90357002,0.00012873,2]
[395282341,1764587431987,-401.17543042,0.00012873,2]
[395282342,1764587431996,-500.0,0.00012873,2]
[395282343,1764587432005,-500.0,0.00012873,2]
[395282344,1764587432014,-247.70257222,0.00012873,2]
[395282345,1764587432025,-252.29742778,0.00012873,2]
[395282346,1764587432034,-500.0,0.00012873,2]
[395282348,1764587432043,-123.59184579,0.00012873,2]
[395282350,1764587432054,-376.40815421,0.00012873,2]
[395282351,1764587432064,-430.3435593,0.00012873,2]
[395282352,1764587432072,-187.96145124,0.00012873,2]
[395282353,1764587432082,-236.48825096,0.00013198,2]
[395282354,1764587432093,-13.51174904,0.00013198,2]
[395282356,1764587432103,-150.0,0.0001342,2]
[395282359,1764587432117,-421.91044416,0.00013421,2]
[395282361,1764587432126,-298.55328261,0.00013421,2]
[395282362,1764587432135,-500.0,0.00013421,2]
[395282363,1764587432145,-598.51138711,0.00013421,2]
[395282364,1764587432154,-500.0,0.00013421,2]
[395282365,1764587432164,-500.0,0.00013421,2]
[395282366,1764587432173,-65.57220161,0.00013421,2]
[395282367,1764587432184,-934.42779839,0.00013421,2]
[395282368,1764587432194,-191.9104549,0.00013421,2]
[395282369,1764587432204,-500.0,0.00013968,2]
[395282370,1764587432213,-300.0,0.0001405,2]
[395282371,1764587432224,-250.0,0.0001405,2]
[395282372,1764587432233,-143.24732363,0.0001405,2]
[395282373,1764587432245,-156.75267637,0.0001405,2]
[395282374,1764587432255,-195.0,0.0001405,2]
[395282375,1764587432264,-195.0,0.0001405,2]
[395282376,1764587432274,-255.22995379,0.0001405,2]
[395282377,1764587432286,-44.77004621,0.0001405,2]
[395282378,1764587432298,-300.0,0.0001405,2]
[395282379,1764587432308,-300.0,0.0001405,2]
[395282380,1764587432318,-300.0,0.0001405,2]
[395282381,1764587432327,-300.0,0.0001405,2]
[395282382,1764587432337,-195.0,0.00014105,2]
[395282383,1764587432347,-195.0,0.00014105,2]
[395282384,1764587432356,-195.0,0.00014105,2]
[395282385,1764587432366,-300.0,0.00014105,2]
[395282386,1764587432376,-300.0,0.00014105,2]
[395282387,1764587432386,-1600.0,0.00014187,2]
[395282388,1764587432395,-663.03,0.00014539,2]
[395282389,1764587432405,-250.0,0.00014557,2]
[395282390,1764587432414,-170.29,0.00014577,2]
[395282391,1764587432425,-495.0,0.00014588,2]
[395282392,1764587432435,-185.0,0.00014617,2]
[395282393,1764587432444,-170.2954588,0.00014821,2]
[395282394,1764587432454,-166.66,0.00014923,2]
[395282395,1764587432463,-1485.83735201,0.00015075,2]
[395282396,1764587432472,-6734.48070333,0.0001515,2]
[395282397,1764587432487,-183.10872981,0.0001515,2]
[395282398,1764587432497,-222.76990664,0.00015206,2]
[395282399,1764587432506,-151.0,0.00015239,2]
[395282400,1764587432516,-151.0,0.00015239,2]
[395282401,1764587432525,-151.0,0.00015241,2]
[395282402,1764587432534,-20180.64368801,0.00015242,2]
[395282403,1764587432550,-781.98694337,0.00015242,2]
[395282404,1764587432563,-2623.40982985,0.00015242,2]
[395282405,1764587432574,-799.21,0.00015242,2]
[395282406,1764587432590,-1148.80393182,0.00015242,2]
[395282407,1764587432602,-1189.67381691,0.00015242,2]